[Event "XVII Profigaia Open 2017"]
[Site "Gaia"]
[Date "2017.06.18"]
[Round "7"]
[White "Freitas, Ruben Manuel"]
[Black "Amorim, Vicente Nuno Marque"]
[Result "1-0"]
[ECO "C66"]
[WhiteElo "1636"]
[BlackElo "1084"]
[Annotator "NA"]
[PlyCount "81"]
[EventDate "2017.??.??"]
[EventType "swiss"]
[EventCountry "POR"]
[SourceTitle "playchess.com"]
[Source "ChessBase"]
[SourceQuality "1"]
[TimeControl "5400+30"]

1. e4 e5 {[%emt 0:06:25]} 2. Nf3 {[%emt 0:00:00]} Nc6 {[%emt 0:00:44]} 3. Bb5 {[%emt 0:00:00]} d6 {[%emt 0:00:48]} 4. d4 {[%emt 0:00:00]} Bd7 {[%emt 0:01:03]} 5. Nc3 {[%emt 0:00:09]} Nf6 {[%emt 0:01:28]} 6. O-O {[%emt 0:01:15]} Be7 {[%emt 0:03:44]} 7. Re1 {[%emt 0:00:42]} O-O {[%emt 0:00:31]} 8. Bxc6 {[%emt 0:00:50]} Bxc6 {[%emt 0:02:46]} 9. dxe5 {[%emt 0:01:13]} dxe5 {[%emt 0:00:15]} 10. Qxd8 {[%emt 0:00:27]} Raxd8 {[%emt 0:00:26]} 11. Bg5 {[%emt 0:00:42]} Rfe8 {[%emt 0:06:59]} 12. Nxe5 {[%emt 0:02:42]} Nd7 {[%emt 0:02:52]} 13. Nxc6 {[%emt 0:02:55]} bxc6 {[%emt 0:00:23]} 14. Bxe7 {[%emt 0:00:02]} Rxe7 {[%emt 0:00:22]} 15. Rad1 {[%emt 0:00:01]} Rb8 {[%emt 0:01:15]} 16. b3 {[%emt 0:01:03]} h6 {[%emt 0:00:32]} 17. Re2 {[%emt 0:02:48]} Rbe8 {[%emt 0:08:07]} 18. Red2 {[%emt 0:01:12]} Nf6 {[%emt 0:02:42]} 19. f3 {[%emt 0:00:02]} Re5 {[%emt 0:05:03]} 20. Ne2 {[%emt 0:00:25]} R8e7 {[%emt 0:03:40]} 21. Rd8+ {[%emt 0:02:57]} Re8 {[%emt 0:00:59]} 22. Rxe8+ {[%emt 0:01:31]} Rxe8 {[%emt 0:00:14]} 23. Rd4 {[%emt 0:00:34]} Re6 {[%emt 0:00:26]} 24. Ra4 {[%emt 0:00:12]} c5 {[%emt 0:00:07]} 25. Rxa7 {[%emt 0:00:37]} c6 {[%emt 0:01:04]} 26. Ra5 {[%emt 0:03:22]} Nd7 {[%emt 0:00:30]} 27. Kf2 {[%emt 0:00:33]} Rd6 {[%emt 0:00:33]} 28. Ke3 {[%emt 0:00:02]} Rg6 {[%emt 0:01:08]} 29. g3 {[%emt 0:00:07]} Rg5 {[%emt 0:01:46]} 30. Ra6 {[%emt 0:01:34]} Ne5 {[%emt 0:03:56]} 31. h4 {[%emt 0:01:03]} Rg6 {[%emt 0:01:01]} 32. Ra5 {[%emt 0:01:49]} Nd7 {[%emt 0:00:32]} 33. h5 {[%emt 0:01:05]} Rf6 {[%emt 0:00:49]} 34. f4 {[%emt 0:00:48]} Kf8 {[%emt 0:01:28]} 35. Nc1 {[%emt 0:00:55]} Ke7 {[%emt 0:00:56]} 36. Nd3 {[%emt 0:00:05]} Kd6 {[%emt 0:00:31]} 37. e5+ {[%emt 0:00:02]} Kd5 {[%emt 0:00:32]} 38. c4+ {[%emt 0:01:44]} Ke6 {[%emt 0:00:23]} 39. Nxc5+ {[%emt 0:01:59]} Nxc5 {[%emt 0:00:20]} 40. exf6 {[%emt 0:00:27]} gxf6 {[%emt 0:00:44]} 41. Rxc5 {[%emt 0:00:01] Kd5 Ke4+} 1-0

[Event "XVII Profigaia Open 2017"]
[Site "Gaia"]
[Date "2017.06.18"]
[Round "7"]
[White "Ferreira, Nuno Messeder"]
[Black "Moura, Paulo Jorge Alves B"]
[Result "1-0"]
[ECO "B23"]
[WhiteElo "1595"]
[BlackElo "1913"]
[Annotator "NA RC"]
[PlyCount "61"]
[EventDate "2017.??.??"]
[EventType "swiss"]
[EventCountry "POR"]
[SourceTitle "playchess.com"]
[Source "ChessBase"]
[SourceQuality "1"]
[TimeControl "5400+30"]

{[%evp 15,55,70,94,75,32767,32767,32767,78,61,18,33,39,37,32,152,35,115,60,114,131,121,32767,32767,32767,32767,32767,152,32767,-27,32767,32767,32767,32767,32767,32767,32767,365,460,463,369,349,366]} 1. e4 c5 {[%emt 0:01:56]} 2. Nc3 {[%emt 0:02:13]} Nc6 {[%emt 0:00:15]} 3. f4 {[%emt 0:00:16]} d6 {[%emt 0:01:22]} 4. Nf3 {[%emt 0:00:09]} Bg4 {[%emt 0:01:48]} 5. Bb5 {[%emt 0:00:44]} Bxf3 6. Bxc6+ bxc6 {[%emt 0:02:39]} 7. Qxf3 {[%emt 0:00:40]} e6 {[%emt 0:01:07]} 8. d3 {[%emt 0:00:17]} Be7 {[%emt 0:00:42]} 9. O-O {[%emt 0:01:31]} d5 {[%emt 0:02:44]} 10. e5 {[%emt 0:00:28]} Nh6 {[%emt 0:01:04]} 11. b3 {[%emt 0:00:49]} O-O {[%emt 0:01:45]} 12. Ne2 {[%emt 0:01:56]} Nf5 {[%emt 0:00:44]} 13. g4 {[%emt 0:01:50]} Nh4 {[%emt 0:03:01]} 14. Qf2 {[%emt 0:03:07]} Qb6 {[%emt 0:02:19] [#]} (14... Ng6 $11 {remains equal.}) 15. c4 {[%emt 0:01:53]} ({White has to play} 15. f5 $1 $16) 15... Rfe8 {[%emt 0:04:29]} (15... Ng6 $11 {keeps the balance.}) 16. Nc3 {[%emt 0:02:40]} a5 {[%emt 0:08:06]} 17. f5 {[%emt 0:01:28]} exf5 18. gxf5 Bd8 {[%emt 0:05:44]} 19. e6 {[%emt 0:02:23]} Bf6 {[%emt 0:04:33]} 20. Na4 {[%emt 0:00:36]} Qc7 $2 {[%emt 0:05:01]} (20... Qd8 $1 $11 21. Bb2 Bxb2 22. Qxb2 dxc4) 21. Rb1 {[%emt 0:05:04]} fxe6 {[%emt 0:07:01]} 22. fxe6 {[%emt 0:01:27]} Rxe6 {[%emt 0:05:11]} 23. Nxc5 {[%emt 0:00:54]} Re5 {[%emt 0:00:22]} 24. Bf4 {[%emt 0:01:27]} Rg5+ {[%emt 0:02:23]} 25. Bxg5 {[%emt 0:00:13]} Bxg5 {[%emt 0:00:33]} 26. Ne6 {[%emt 0:00:18]} Qe7 {[%emt 0:00:38]} 27. Rbe1 {[%emt 0:02:01]} Bf6 {[%emt 0:02:19]} 28. Kh1 $18 {[%emt 0:05:53]} Ng6 {[%emt 0:04:51]} 29. Nxg7 {[%emt 0:23:00]} Qxg7 {[%emt 0:08:25]} 30. Qxf6 {[%emt 0:00:54]} Rc8 {[%emt 0:06:36]} 31. Qe6+ {[%emt 0:00:33]} 1-0

[Event "XVII Profigaia Open 2017"]
[Site "Gaia"]
[Date "2017.06.18"]
[Round "7"]
[White "Oliveira, Maria Alice Ramos M"]
[Black "Pintor, Simao Maciel Abranc"]
[Result "0-1"]
[ECO "B31"]
[WhiteElo "1561"]
[BlackElo "2022"]
[Annotator "NA"]
[PlyCount "54"]
[EventDate "2017.??.??"]
[EventType "swiss"]
[EventCountry "POR"]
[SourceTitle "playchess.com"]
[Source "ChessBase"]
[SourceQuality "1"]
[TimeControl "5400+30"]

1. e4 {[%emt 0:00:00]} c5 {[%emt 0:00:04]} 2. Nf3 {[%emt 0:00:00]} Nc6 {[%emt 0:00:07]} 3. Bb5 {[%emt 0:00:00]} g6 {[%emt 0:00:06]} 4. Bxc6 {[%emt 0:00:00]} bxc6 {[%emt 0:00:05]} 5. O-O {[%emt 0:00:00]} Bg7 {[%emt 0:00:04]} 6. Re1 {[%emt 0:00:26]} Nh6 {[%emt 0:00:36]} 7. c3 {[%emt 0:01:18]} O-O {[%emt 0:00:10]} 8. d4 {[%emt 0:01:00]} cxd4 {[%emt 0:00:07]} 9. cxd4 {[%emt 0:00:20]} d5 {[%emt 0:01:22]} 10. e5 {[%emt 0:04:19] B31: Sicilian: 2...Nc6 3 Bb5 g6} Bg4 {[%emt 0:00:34] [#]} (10... f6 11. exf6 exf6 12. Nbd2 Re8 13. Nb3 Nf7 14. Nc5 Bg4 15. Rxe8+ Qxe8 16. h3 Bxf3 17. Qxf3 Qe1+ {0-1 (51) Inarkiev,E (2730)-Gelfand,B (2734) Magas 2016}) 11. Nbd2 $1 {[%emt 0:17:32]} f6 {[%emt 0:05:44] LiveBook: 4 Games} 12. Qa4 $146 {[%emt 0:03:41]} ({Predecessor:} 12. h3 Bxf3 13. Nxf3 Nf7 14. Bf4 Qb6 15. Qd2 fxe5 16. Nxe5 Nd6 17. Bh6 Ne4 18. Rxe4 Bxh6 19. Qxh6 dxe4 20. Nxg6 Qxd4 21. Nxe7+ {1-0 (59) Ramiro Ovejero,J (2368)-Munoz Pantoja,M (2483) La Roda 2013}) 12... Qb6 {[%emt 0:01:45]} 13. h3 {[%emt 0:02:55]} Bf5 {[%emt 0:02:32]} 14. Nb3 {[%emt 0:05:27]} Nf7 {[%emt 0:04:05]} 15. e6 {[%emt 0:07:40]} Nd6 {[%emt 0:00:31]} 16. Nc5 {[%emt 0:00:38]} Qb5 {[%emt 0:01:35]} 17. Qxb5 {[%emt 0:08:49]} cxb5 {[%emt 0:00:05]} 18. g4 {[%emt 0:18:32]} Be4 {[%emt 0:00:26]} 19. Nh2 {[%emt 0:02:04]} f5 {[%emt 0:00:27]} 20. Be3 {[%emt 0:07:32]} f4 {[%emt 0:01:03]} 21. f3 {[%emt 0:02:33]} fxe3 {[%emt 0:00:20]} 22. fxe4 {[%emt 0:00:09]} Bxd4 {[%emt 0:00:31]} 23. Nd7 {[%emt 0:01:36]} e2+ {[%emt 0:01:03]} 24. Kh1 {[%emt 0:00:47]} Rf2 {[%emt 0:00:20]} 25. exd5 {[%emt 0:00:54]} Ne4 {[%emt 0:00:22]} 26. Rg1 {[%emt 0:01:09]} Bxb2 {[%emt 0:01:09]} 27. Rab1 $19 {[%emt 0:00:49]} Bc3 {[%emt 0:00:09]} 0-1

[Event "XVII Profigaia Open 2017"]
[Site "Gaia"]
[Date "2017.06.18"]
[Round "7"]
[White "Sismeiro, Miguel"]
[Black "Figueiredo, Bruno"]
[Result "1/2-1/2"]
[ECO "B38"]
[WhiteElo "1528"]
[BlackElo "1914"]
[Annotator "NA RC"]
[PlyCount "84"]
[EventDate "2017.??.??"]
[EventType "swiss"]
[EventCountry "POR"]
[SourceTitle "playchess.com"]
[Source "ChessBase"]
[SourceQuality "1"]
[TimeControl "5400+30"]

{[%evp 11,81,44,32767,45,70,43,32767,32767,32767,16,30,35,40,34,50,45,58,29,42,32767,32767,32767,32767,32767,-46,32767,50,32767,32767,57,69,34,32767,30,124,27,37,34,43,30,51,27,59,36,55,30,99,61,122,32767,32767,32767,32767,95,89,94,32767,106,106,53,67,50,45,21,64,64,57,0,62,0,64,0]} 1. e4 c5 2. Nf3 Nc6 3. d4 cxd4 4. Nxd4 g6 5. c4 Bg7 6. Be3 Nh6 7. Be2 O-O 8. Nc3 f5 9. exf5 Bxd4 {B38: Sicilian: Maroczy Bind with 5...Bg7 and 7...0-0} 10. Bxd4 Nxf5 {LiveBook: 7 Games} 11. Bc5 d6 12. Ba3 Nfd4 13. O-O Bf5 14. Bd3 (14. Bf3 $5) 14... Qd7 15. Bxf5 $146 ({Predecessor:} 15. b3 Bxd3 16. Qxd3 Rf3 17. Qd1 {½-½ (49) Arakhamia Grant,K (2485)-Turner,M (2395) Oakham 1994}) 15... Rxf5 16. Ne4 Raf8 17. Ng3 Rf4 18. b3 {[#]} Rh4 $2 ({Black should try} 18... Nf3+ $1 $19 {[%mdl 512]} 19. gxf3 Nd4) 19. f3 Qe6 20. Bc1 Qe5 21. Bd2 Nf5 22. Qe1 Qd4+ (22... Qxe1 $14 23. Rfxe1 Nxg3 24. hxg3 Rd4) 23. Qf2 (23. Rf2 $16) 23... Nxg3 24. hxg3 Qxf2+ 25. Kxf2 Rh5 26. Bc3 Rhf5 27. Rad1 Kf7 28. Rfe1 Kg8 (28... h5 $11 {keeps the balance.}) 29. Re4 Ra8 30. g4 Rf7 31. Rd5 Raf8 32. Ke3 Rc8 33. Kd2 a6 34. a4 Nb8 35. Rd3 ({White should play} 35. b4 $16) 35... Nd7 36. Bd4 Kf8 37. Kd1 Ke8 $11 38. Rd2 Kf8 39. Rd3 (39. a5 $14) 39... Kg8 40. Rd2 ({Better is} 40. a5 $14) 40... Kf8 41. Rd3 $11 Kg8 42. Rd2 Kf8 1/2-1/2

[Event "XVII Profigaia Open 2017"]
[Site "Gaia"]
[Date "2017.06.18"]
[Round "7"]
[White "Monteiro, Paulo"]
[Black "Paiva, Rodrigo Garcia"]
[Result "1-0"]
[ECO "C88"]
[WhiteElo "1488"]
[BlackElo "1075"]
[Annotator "NA"]
[PlyCount "77"]
[EventDate "2017.??.??"]
[EventType "swiss"]
[EventCountry "POR"]
[SourceTitle "playchess.com"]
[Source "ChessBase"]
[SourceQuality "1"]
[TimeControl "5400+30"]

1. e4 e5 2. Nf3 Nc6 3. Bb5 a6 4. Ba4 {[%emt 0:00:00]} Be7 {[%emt 0:03:25]} 5. O-O b5 {[%emt 0:00:26]} 6. Bb3 {[%emt 0:00:27]} Nf6 {[%emt 0:00:41]} 7. Re1 {[%emt 0:00:08]} d6 {[%emt 0:00:45]} 8. h3 {[%emt 0:00:10]} Bb7 {[%emt 0:00:17] C90: Closed Ruy Lopez with 7...d6: Early deviations} (8... O-O 9. c3 Bb7 10. d3 Na5 {½-½ (10) Ponkratov,P (2573)-Maletin,P (2579) Voronezh 2016}) 9. c3 {[%emt 0:00:26]} Qd7 {[%emt 0:00:29]} 10. d3 {[%emt 0:01:07]} O-O {[%emt 0:02:03]} 11. Nbd2 {[%emt 0:00:24]} Na7 $146 {[%emt 0:02:54]} ({Predecessor:} 11... Rfe8 12. Nf1 Nd8 13. Ng3 Ne6 14. d4 exd4 15. Nxd4 Nc5 16. Bc2 g6 17. Bh6 {1-0 (56) Valak,A (2415)-Kyhos,A (2402) ICCF email 2009}) 12. Nf1 {[%emt 0:00:54]} c5 {[%emt 0:01:28]} 13. Ng3 {[%emt 0:00:12]} a5 {[%emt 0:00:45]} 14. Nh2 {[%emt 0:05:37]} a4 {[%emt 0:00:54]} 15. Bc2 {[%emt 0:00:06]} Bc6 {[%emt 0:01:35]} (15... Nc6 $11) 16. Nf5 {[%emt 0:01:49]} b4 {[%emt 0:03:14]} (16... Qd8 $142) 17. Nxe7+ {[%emt 0:01:38]} ({White should play} 17. d4 $16) 17... Qxe7 {[%emt 0:00:16]} 18. Bxa4 {[%emt 0:00:15]} Bxa4 {[%emt 0:01:05]} 19. Qxa4 {[%emt 0:00:08]} Qd7 {[%emt 0:00:13]} 20. Qxd7 {[%emt 0:00:15]} Nxd7 {[%emt 0:00:19]} 21. Nf1 {[%emt 0:07:14]} Rab8 {[%emt 0:01:33]} ({Black should play} 21... bxc3 $14 22. bxc3 Nb5) 22. c4 {[%emt 0:04:33]} ({White should try} 22. Bd2 $16) 22... f5 {[%emt 0:03:17]} (22... Nc6 $14) 23. Ne3 {[%emt 0:05:04]} (23. exf5 $16 Nc6 24. Be3) 23... f4 $14 {[%emt 0:00:23]} 24. Nf5 {[%emt 0:01:50]} Rf6 {[%emt 0:00:56]} 25. b3 {[%emt 0:12:57]} g6 {[%emt 0:04:38]} 26. Ne7+ {[%emt 0:00:39]} Kg7 {[%emt 0:00:48]} 27. Nd5 {[%emt 0:00:19]} Rf7 {[%emt 0:00:41]} 28. Bb2 {[%emt 0:00:37]} Nf6 {[%emt 0:00:14]} 29. Reb1 {[%emt 0:07:21]} h5 {[%emt 0:01:21]} 30. Kf1 {[%emt 0:11:23]} g5 {[%emt 0:01:47]} 31. Ke2 {[%emt 0:01:15]} g4 {[%emt 0:00:26]} 32. Nxf6 {[%emt 0:01:09]} Rxf6 {[%emt 0:00:42]} 33. hxg4 {[%emt 0:00:47]} hxg4 {[%emt 0:00:17]} 34. Rh1 {[%emt 0:00:52]} Kg6 {[%emt 0:02:48]} 35. Rh4 {[%emt 0:01:13]} g3 {[%emt 0:00:49]} 36. fxg3 {[%emt 0:01:34]} fxg3 {[%emt 0:01:51]} 37. Rg4+ {[%emt 0:00:22]} Kh5 {[%emt 0:00:36]} 38. Rxg3 {[%emt 0:00:16]} Nc6 {[%emt 0:00:27]} 39. Rh1# {[%emt 0:00:16]} 1-0

[Event "XVII Profigaia Open 2017"]
[Site "Gaia"]
[Date "2017.06.18"]
[Round "7"]
[White "Clemente, António Manuel"]
[Black "Fernandes, Tiago Joao Carneiro"]
[Result "1-0"]
[ECO "D37"]
[WhiteElo "1393"]
[BlackElo "1182"]
[Annotator "NA RC"]
[PlyCount "81"]
[EventDate "2017.??.??"]
[EventType "swiss"]
[EventCountry "POR"]
[SourceTitle "playchess.com"]
[Source "ChessBase"]
[SourceQuality "1"]
[TimeControl "5400+30"]

1. d4 d5 2. c4 e6 3. Nc3 Nf6 4. Nf3 b6 {[%emt 0:05:25]} 5. cxd5 {[%emt 0:04:59]} exd5 {[%emt 0:01:11]} 6. Bf4 {[%emt 0:00:39]} Bd6 {[%emt 0:01:42]} 7. Bxd6 {[%emt 0:01:03]} Qxd6 {[%emt 0:00:29]} 8. h3 {[%emt 0:00:18]} c5 {[%emt 0:07:16]} 9. e3 {[%emt 0:00:34]} cxd4 {[%emt 0:01:09]} 10. exd4 {[%emt 0:00:32]} O-O {[%emt 0:02:20]} 11. Be2 {[%emt 0:00:13]} Nc6 {[%emt 0:01:32]} 12. O-O {[%emt 0:00:34]} Bf5 {[%emt 0:02:59]} 13. Bd3 {[%emt 0:01:26]} Bxd3 {[%emt 0:10:28]} 14. Qxd3 {[%emt 0:00:10]} Rfe8 {[%emt 0:04:53]} 15. a3 {[%emt 0:02:09]} a6 {[%emt 0:06:00]} 16. b4 {[%emt 0:03:49]} b5 {[%emt 0:11:26]} 17. Rfe1 {[%emt 0:02:27]} Nd7 {[%emt 0:10:53]} 18. Re3 {[%emt 0:08:35]} Nb6 {[%emt 0:05:27]} 19. Nd2 {[%emt 0:00:31]} Nc4 {[%emt 0:02:57]} 20. Rxe8+ {[%emt 0:00:35]} Rxe8 {[%emt 0:01:15]} 21. Nb3 {[%emt 0:00:33]} Qf6 {[%emt 0:04:06]} 22. Nxd5 {[%emt 0:06:28]} Qd6 {[%emt 0:05:35]} 23. Ne3 {[%emt 0:01:23]} Rd8 {[%emt 0:05:23]} 24. Nxc4 {[%emt 0:00:33]} bxc4 {[%emt 0:02:14]} 25. Qxc4 {[%emt 0:00:21]} Nxd4 {[%emt 0:00:09]} 26. Nxd4 {[%emt 0:02:58]} Qxd4 {[%emt 0:01:01]} 27. Qxd4 {[%emt 0:00:10]} Rxd4 {[%emt 0:00:14]} 28. Kf1 {[%emt 0:00:12]} f5 {[%emt 0:01:11]} 29. Rb1 {[%emt 0:00:15]} Rd5 {[%emt 0:00:31]} 30. a4 {[%emt 0:00:14]} Rd7 {[%emt 0:01:21]} 31. b5 {[%emt 0:00:41]} a5 {[%emt 0:00:07]} 32. Ke2 {[%emt 0:00:48]} Re7+ {[%emt 0:00:31]} 33. Kd3 {[%emt 0:00:29]} Rc7 {[%emt 0:00:30]} 34. Rb2 {[%emt 0:00:34]} Kf7 {[%emt 0:00:27]} 35. Kd4 {[%emt 0:00:17]} Ke6 {[%emt 0:01:47]} 36. b6 {[%emt 0:00:28]} Rb7 {[%emt 0:00:20]} 37. Kc5 {[%emt 0:00:14]} Kd7 {[%emt 0:00:13]} 38. Rd2+ {[%emt 0:00:31]} Kc8 {[%emt 0:00:28]} 39. Kc6 {[%emt 0:00:21]} h6 {[%emt 0:02:12]} 40. Re2 {[%emt 0:00:21]} g5 {[%emt 0:01:53]} 41. Re8# {[%emt 0:00:05]} 1-0

[Event "XVII Profigaia Open 2017"]
[Site "Gaia"]
[Date "2017.06.18"]
[Round "7"]
[White "Marrios, Ruben"]
[Black "Antao, Jorge"]
[Result "1/2-1/2"]
[ECO "E00"]
[WhiteElo "1315"]
[BlackElo "1873"]
[Annotator "NA RC"]
[PlyCount "88"]
[EventDate "2017.??.??"]
[EventType "swiss"]
[EventCountry "POR"]
[SourceTitle "playchess.com"]
[Source "ChessBase"]
[SourceQuality "1"]
[TimeControl "5400+30"]

{[%evp 22,88,-36,-98,-92,-92,32767,32767,-78,32767,-40,-58,-61,32767,-39,-37,0,32767,32767,32767,32767,32767,32767,32767,-90,32767,32767,9,32767,32767,54,39,43,-24,43,32767,32767,32767,-389,32767,-151,32767,-620,-769,-381,-339,32767,-510,-539,-1195,-1357,-29989,32767,32767,32767,0,0,0,26,0,128,136,210,240,396,5,358,0,489]} 1. d4 {[%emt 0:00:00]} Nf6 {[%emt 0:00:06]} 2. c4 {[%emt 0:00:00]} e6 {[%emt 0:00:04]} 3. e3 {[%emt 0:00:06]} d5 {[%emt 0:00:21]} 4. Nc3 Be7 {[%emt 0:01:13]} 5. Bd3 {[%emt 0:00:39]} O-O {[%emt 0:00:12] D35: Queen's Gambit Declined: Exchange Variation} 6. Nge2 {[%emt 0:01:31]} (6. cxd5 exd5 7. Nge2 b6 8. O-O Ba6 9. Nf4 Re8 10. Bxa6 Nxa6 11. Qa4 Nb8 12. Nfxd5 Nxd5 13. Nxd5 Bd6 14. Nc3 c6 15. e4 b5 {1-0 (43) Brizuela Abreu,R (2238)-Acosta Villarroel,L (2235) Porlamar 2015}) 6... Nbd7 {[%emt 0:00:13]} 7. O-O {[%emt 0:00:41]} b6 {[%emt 0:02:04]} 8. Qc2 $146 {[%emt 0:00:42]} ({Predecessor:} 8. cxd5 exd5 9. Bd2 c5 10. Rc1 Bb7 11. Ng3 Re8 12. Nf5 Bf8 13. Nb5 {0-1 (36) Straka,L (1512)-Prokaj,M (1876) Slovakia 2013}) 8... dxc4 {[%emt 0:01:33]} 9. Bxc4 {[%emt 0:01:40]} Bb7 {[%emt 0:00:26]} 10. Bd3 {[%emt 0:00:44]} c5 {[%emt 0:00:20]} 11. Rd1 {[%emt 0:05:39]} Rc8 {[%emt 0:00:44]} 12. Qb3 {[%emt 0:03:15]} ({White should play} 12. Ng3 $15) 12... a6 {[%emt 0:03:39]} 13. a4 {[%emt 0:01:47]} Qc7 {[%emt 0:00:41]} 14. Qa2 {[%emt 0:03:46]} Bd6 {[%emt 0:02:29]} ({Don't play} 14... cxd4 15. exd4 Bd6 16. h3 $15) ({Black should try} 14... c4 15. Bc2 {[#]} b5 $1 {[%mdl 512]} 16. axb5 axb5) 15. g3 {[%emt 0:03:39]} Bf3 {[%emt 0:03:22]} ({Black should play} 15... Rfd8 $17 16. Qb1 h6) 16. Bxa6 {[%emt 0:04:18]} Ra8 {[%emt 0:01:58]} 17. Bd3 {[%emt 0:00:38]} Be7 {[%emt 0:04:18]} 18. b3 {[%emt 0:01:15]} e5 {[%emt 0:00:34]} 19. Nb5 {[%emt 0:06:11]} Qc8 {[%emt 0:00:37]} 20. Ba3 {[%emt 0:03:24]} Rd8 {[%emt 0:02:37]} 21. Bf5 {[%emt 0:02:30]} Qc6 {[%emt 0:03:42]} 22. Rac1 {[%emt 0:03:39]} Ng4 {[%emt 0:05:41]} 23. dxc5 {[%emt 0:04:27]} Qh6 {[%emt 0:03:36]} 24. Bxg4 $1 {[%emt 0:02:40]} Bxg4 {[%emt 0:00:23]} 25. c6 {[%emt 0:06:11]} Bxa3 {[%emt 0:01:00]} 26. Nxa3 {[%emt 0:03:13]} Bf3 {[%emt 0:01:40]} 27. h4 {[%emt 0:02:59]} (27. Rxd7 {is a self mate.} Qh3 28. Nf4 exf4 29. Rxd8+ Rxd8 30. gxf4 Qg2#) (27. Nc2 $1 $14 Bxc6 28. Ne1) 27... Bxc6 {[%emt 0:00:56]} (27... Qe6 $1 $15 28. Kh2 Bxc6) 28. Nc3 {[%emt 0:01:40]} g5 {[%emt 0:02:27]} 29. Ne2 {[%emt 0:05:00]} gxh4 {[%emt 0:03:25]} 30. gxh4 {[%emt 0:00:28]} Kh8 $2 {[%emt 0:00:25]} (30... Nc5 $19 {is more deadly.} 31. Rxd8+ Rxd8) 31. Rc4 {[%emt 0:01:17]} Nc5 {[%emt 0:01:08]} 32. Qc2 {[%emt 0:03:28]} Bf3 {[%emt 0:00:41]} 33. Rxd8+ Rxd8 {[%emt 0:00:24]} 34. Ng3 {[%emt 0:05:15]} Rd1+ {[%emt 0:02:41]} 35. Kh2 {[%emt 0:00:37]} e4 {[%emt 0:00:43]} 36. Rxe4 {[%emt 0:02:03]} Rh1+ {[%emt 0:11:02]} 37. Nxh1 {[%emt 0:01:21]} Bxe4 {[%emt 0:00:22]} 38. Qc3+ {[%emt 0:06:39]} Kg8 {[%emt 0:00:51]} 39. Ng3 {[%emt 0:01:00]} Qxh4+ {[%emt 0:03:24]} 40. Kg1 {[%emt 0:00:10]} Bf3 {[%emt 0:02:36] [#]} (40... Qh3 $11 {keeps the balance.} 41. Nxe4 Nxe4) 41. Nc2 $1 {[%emt 0:01:34]} Bb7 {[%emt 0:01:19]} (41... Qg4 $16 {was called for.}) 42. Qe5 {[%emt 0:00:30]} Qg4 {[%emt 0:03:05]} (42... Qd8 $142) 43. Qe8+ $2 {[%emt 0:01:24]} (43. Nd4 $18 h6 {[#]} 44. a5 $1 {[%mdl 512]}) 43... Kg7 {[%emt 0:00:27] [#]} 44. Qe5+ $2 {[%emt 0:00:13]} (44. Nd4 $1 $18 {[%cal Rd4f5]} Bc8 45. a5) 44... Kg8 $18 {[%emt 0:02:59]} 1/2-1/2

[Event "XVII Profigaia Open 2017"]
[Site "Gaia"]
[Date "2017.06.18"]
[Round "7"]
[White "Vieira, Pedro"]
[Black "Pipiras, Filipa Fortuna"]
[Result "0-1"]
[ECO "B00"]
[WhiteElo "1256"]
[BlackElo "1641"]
[Annotator "NA RC"]
[PlyCount "96"]
[EventDate "2017.??.??"]
[EventType "swiss"]
[EventCountry "POR"]
[SourceTitle "playchess.com"]
[Source "ChessBase"]
[SourceQuality "1"]
[TimeControl "5400+30"]

1. e4 {[%emt 0:00:00]} e5 {[%emt 0:07:18]} 2. Nf3 {[%emt 0:00:00]} Nc6 {[%emt 0:00:18]} 3. Bb5 {[%emt 0:00:00]} a6 {[%emt 0:00:13]} 4. Ba4 {[%emt 0:00:00]} Nf6 {[%emt 0:00:16]} 5. O-O {[%emt 0:00:05]} Be7 {[%emt 0:00:27]} 6. Nc3 {[%emt 0:00:31]} b5 {[%emt 0:00:23]} 7. Bb3 {[%emt 0:00:05]} O-O {[%emt 0:00:18]} 8. Re1 {[%emt 0:01:41]} d6 {[%emt 0:00:13]} 9. h3 {[%emt 0:02:17]} Na5 {[%emt 0:00:25]} 10. Nd5 {[%emt 0:03:04]} Nxd5 {[%emt 0:01:09]} 11. Bxd5 {[%emt 0:01:01]} c6 {[%emt 0:00:18]} 12. Bb3 {[%emt 0:00:16]} Nxb3 {[%emt 0:00:40]} 13. axb3 {[%emt 0:00:06]} f5 {[%emt 0:02:42]} 14. d4 {[%emt 0:02:16]} exd4 15. Qxd4 {[%emt 0:02:27]} Be6 {[%emt 0:15:00]} 16. Bf4 {[%emt 0:17:29]} c5 {[%emt 0:18:28]} 17. Qd3 {[%emt 0:06:15]} Rf7 {[%emt 0:01:29]} 18. Red1 {[%emt 0:06:48]} fxe4 {[%emt 0:02:35]} 19. Qxe4 {[%emt 0:00:14]} Bf5 {[%emt 0:00:34]} 20. Qc6 {[%emt 0:09:04]} Bxc2 {[%emt 0:00:40]} 21. Rd2 {[%emt 0:00:24]} Rxf4 {[%emt 0:00:46]} 22. Rxc2 {[%emt 0:00:11]} Qc8 {[%emt 0:02:28]} 23. Qxc8+ {[%emt 0:00:25]} Rxc8 {[%emt 0:00:16]} 24. Rxa6 {[%emt 0:00:09]} Rb4 {[%emt 0:00:15]} 25. Nd2 {[%emt 0:02:47]} d5 {[%emt 0:03:17]} 26. Ra7 {[%emt 0:02:01]} Bf6 {[%emt 0:03:53]} 27. Rd7 {[%emt 0:00:53]} Rd4 {[%emt 0:02:05]} 28. Kf1 {[%emt 0:07:12]} c4 {[%emt 0:02:51]} 29. bxc4 {[%emt 0:00:24]} bxc4 {[%emt 0:02:54]} 30. b3 {[%emt 0:01:37]} c3 {[%emt 0:00:29]} 31. Nf3 {[%emt 0:03:16]} Rb4 {[%emt 0:02:45]} 32. Rxd5 {[%emt 0:01:11]} Rxb3 {[%emt 0:00:15]} 33. Ke2 {[%emt 0:04:34]} Rb2 {[%emt 0:05:49]} 34. Kd3 {[%emt 0:02:36]} Rcb8 {[%emt 0:06:14]} 35. Nd4 {[%emt 0:17:45]} R8b4 {[%emt 0:00:26]} 36. Rxc3 {[%emt 0:00:30]} Rxf2 {[%emt 0:00:30]} 37. Rc8+ {[%emt 0:00:00]} Kf7 {[%emt 0:00:13]} 38. Rd7+ {[%emt 0:00:00]} Kg6 {[%emt 0:00:11]} 39. Ne6 {[%emt 0:00:00]} Rb3+ {[%emt 0:02:14]} 40. Ke4 {[%emt 0:00:00]} Re2+ {[%emt 0:00:13]} 41. Kd5 {[%emt 0:00:00]} Re5+ {[%emt 0:00:31]} 42. Kc4 {[%emt 0:00:00]} Rb1 {[%emt 0:04:11]} 43. Rc5 {[%emt 0:00:54]} Rxe6 {[%emt 0:00:22]} 44. Kd5 {[%emt 0:01:33]} Re5+ {[%emt 0:00:41]} 45. Kc6 {[%emt 0:00:47]} Rxc5+ {[%emt 0:00:15]} 46. Kxc5 {[%emt 0:00:06]} Rc1+ {[%emt 0:00:14]} 47. Kb5 {[%emt 0:00:18]} Rc2 {[%emt 0:00:19]} 48. g4 {[%emt 0:00:14]} Rc3 0-1